Cogmind - Beta 14 @@@ ROGUE MODE // 2024.11.16 @ 22:27:01 Player: Calasmeer Result: Destroyed by as-74899 with Assembled Maul Performance ------------- Evolutions (0) 0 Regions Visited (2) 400 Robots Destroyed (40) 200 Value Destroyed (566) 566 Prototype IDs (0) 0 Alien Tech Used (0) 0 Bonus (-6) -6 TOTAL SCORE: 1160 Bonus ------- Follower Combat Kills 25 Friendly Fire -31 Cogmind --------- Core Integrity 0/250 Matter 294/300 Energy 240/240 System Corruption 4% Temperature Cool (0) Movement Treading (240) Ox1 Location -10/Mines Parts ------- > --- POWER (1) -------- Nuclear Core > --- PROPULSION (2) --- Light Treads > --- UTILITY (2) ------ Large Storage Unit Seismic Detector > --- WEAPON (2) ------- Hammer > --- INVENTORY (15) --- Ion Engine Light Ion Engine Compact Wheel Compact Wheel Large Storage Unit High-capacity Storage Unit Small Laser Small Laser Field Laser Light Assault Rifle Light Assault Rifle Light Assault Rifle Mining Laser Peak State ------------ > --- POWER ------------ Ion Engine > --- PROPULSION ------- Light Treads Light Treads > --- UTILITY ---------- Large Storage Unit Improved Terrain Scanner > --- WEAPON ----------- Heavy EM Pulse Gun Heavy EM Pulse Gun > --- INVENTORY -------- Light Ion Engine Compact Wheel Compact Wheel Small Storage Unit Large Storage Unit Small Laser Small Laser Light Assault Rifle Light Assault Rifle Light Assault Rifle Hammer [Rating: 12] Favorites ----------- Power Ion Engine Engine Ion Engine Power Core Nuclear Core Propulsion Light Treads Treads Light Treads Utility Large Storage Unit Device Improved Terrain Scanner Storage Large Storage Unit Weapon Heavy EM Pulse Gun Energy Gun Heavy EM Pulse Gun Ballistic Gun Light Assault Rifle Ballistic Cannon Light Cannon Impact Weapon Hammer Build | -11 -10 -10 ------- Run | Yrd Mat Min Slots Evolved . | . . . Power . | . . . Propulsion . | . . . Utility . | . . . Weapon . | . . . Parts Attached 19 | 8 8 3 Power 3 | 2 . 1 Engine 2 | 2 . . Core 1 | . . 1 Reactor . | . . . Propulsion 4 | 2 1 1 Treads 4 | 2 1 1 Leg . | . . . Wheel . | . . . Hover . | . . . Flight . | . . . Utility 6 | 2 4 . Device 2 | 1 1 . Storage 4 | 1 3 . Processor . | . . . Hackware . | . . . Protection . | . . . Artifact . | . . . Weapon 6 | 2 3 1 Energy Gun 3 | 1 2 . Energy Cannon . | . . . Ballistic Gun 1 | 1 . . Ballistic Cannon 1 | . 1 . Launcher . | . . . Special Weapon . | . . . Impact Weapon 1 | . . 1 Slashing Weapon . | . . . Piercing Weapon . | . . . Special Melee Weapon . | . . . Unidentified Prototypes . | . . . Parts Lost 4 | . . 4 Power . | . . . Propulsion 2 | . . 2 Utility . | . . . Weapon 2 | . . 2 Highest Loss Streak 4 | . . 4 To Critical Strikes . | . . . Average Slot Usage (%) 99 | . 100 99 Engine 12 | . 14 3 Core 1 | . . 10 Treads 28 | . 28 28 Device 14 | . 14 14 Storage 14 | . 14 14 Energy Gun 23 | . 22 27 Ballistic Gun 2 | . 2 . Ballistic Cannon 2 | . 2 . Peak Build Rating 12 | 9 12 12 Average Rating 10 | 6 10 11 On Entrance 6 | . 9 10 Naked Turns . | . . . Heaviest Build 34 | 13 32 34 Greatest Support 40 | 40 40 40 Greatest Overweight (x) 1 | 1 . 1 Average Overweight (x) . | . . . Largest Inventory Capacity 25 | 8 25 15 Average Capacity 13 | 6 13 15 Most Carried 15 | 4 13 15 Average Carried 10 | 2 9 14 Final Capacity 15 | 8 15 15 Final Carried 13 | 4 12 13 Class Distribution -------------------- 100% | Mutant Dominant Class ---------------- Mutant | -10/Materials Mutant | -10/Mines Resources | -11 -10 -10 ----------- Run | Yrd Mat Min Matter Collected 558 | 286 256 16 Remotely . | . . . Salvage Created 1184 | 148 932 104 Parts 87 | 12 68 7 Haulers Intercepted 1 | . 1 . Recyclers Shooed . | . . . Parts Field Recycled . | . . . Retrieved Matter . | . . . Parts Self-Destructed . | . . . Prevented . | . . . Kills | -11 -10 -10 ------- Run | Yrd Mat Min Combat Hostiles Destroyed 20 | . 18 2 Melee 1 | . . 1 Guns 13 | . 13 . Cannons 5 | . 5 . AOE 1 | . . 1 Classes Destroyed 8 | 3 4 1 Worker 13 | 2 9 2 Tunneler 2 | 2 . . Hauler 1 | . 1 . Recycler 3 | 1 2 . Watcher 2 | . 2 . Swarmer 8 | . 8 . Grunt 11 | . 10 1 Assembled 1 | . . 1 Best Kill Streak 12 | 2 12 3 Combat Bots Only 7 | . 7 1 Max Kills in Single Turn 2 | 1 2 1 Gunslinging 1 | . 1 . Exploded 1 | . . 1 Melee 1 | . . 1 Uniques/NPCs Destroyed . | . . . Combat | -11 -10 -10 -------- Run | Yrd Mat Min Hostile Shots Fired 89 | . 65 24 Missed 13 | . 9 4 Damage Taken 1051 | . 517 534 Core 270 | . 100 170 Absorbed by Shields . | . . . Core Remaining (%) 100 | 100 . . Volleys Fired 94 | 20 68 6 Largest 2 | 2 2 2 Hottest 90 | 60 90 90 Shots Fired 177 | 30 135 12 Gun 134 | 30 92 12 Cannon 43 | . 43 . Launcher . | . . . Special . | . . . Kinetic 53 | 10 43 . Thermal 64 | 20 44 . Explosive . | . . . Electromagnetic 60 | . 48 12 Robot Hit Streak 8 | 6 8 8 Robot Miss Streak 5 | 2 5 1 Penetration Max . | . . . Secondary Targets 2 | . 2 . Max Gunslinging Chain 1 | . 1 . Shots Hit Robots 97 | 18 70 9 Core Hits 45 | 6 33 6 Critical Kills . | . . . Critical Parts Destroyed . | . . . Critical Strikes 1 | . 1 . Corrupt 1 | . 1 . Melee Attacks 2 | . . 2 Impact 2 | . . 2 Slashing . | . . . Piercing . | . . . Sneak Attacks . | . . . Combat Hostiles . | . . . Follow-up Attacks . | . . . Damage Inflicted 1654 | 211 1182 261 Guns 1092 | 211 744 137 Cannons 393 | . 393 . Explosions 138 | . 45 93 Melee 31 | . . 31 Ramming . | . . . Kinetic 412 | 19 393 . Thermal 594 | 192 309 93 Explosive . | . . . Electromagnetic 617 | . 480 137 Impact 31 | . . 31 Slashing . | . . . Piercing . | . . . Highest Corruption 4 | . 1 4 Average Corruption 1 | . 1 1 Corruption Purged . | . . . Corruption Blocked . | . . . Effects 11 | . 8 3 Message Errors 5 | . 5 . Matter Fused 2 | . . 2 Heat Flow Errors 1 | . 1 . Data Loss (minor) 1 | . 1 . Data Loss (major) 1 | . . 1 Weapon Failures 1 | . 1 . Overload Shots . | . . . Overflow Damage . | . . . Projectiles . | . . . Explosions . | . . . Melee . | . . . Knockbacks 6 | . 6 . Impact . | . . . Kinetic 5 | . 5 . Secondary 1 | . 1 . Self-Inflicted Damage 39 | . . 39 Shots 1 | . . 1 Rammed . | . . . Targets Rammed . | . . . Kicked . | . . . Crushed . | . . . Highest Temperature 354 | 40 354 126 Average Temperature 108 | 23 124 42 Received Heat Transfer 129 | . 117 12 Effects 3 | . 3 . Shutdowns 2 | . 2 . Damage (minor) 1 | . 1 . Siege Activations . | . . . Robots Corrupted . | . . . Combat Hostiles . | . . . Parts Fried 1 | . 1 . Impact Corruptions . | . . . Robots Melted . | . . . Combat Hostiles . | . . . Parts Melted 1 | . 1 . Heat Transferred 1225 | 425 650 150 Parts Sabotaged . | . . . Parts Stolen . | . . . Parts Stripped . | . . . Power Chain Reactions 2 | . 1 1 Alert | -11 -10 -10 ------- Run | Yrd Mat Min Peak Influence 240 | 25 240 141 Initial 67 | . 16 67 Average 110 | 10 121 108 Maximum Alert Level 1 | . 1 . Low Security (%) 73 | 100 64 100 Level 1 26 | . 35 . Level 2 . | . . . Level 3 . | . . . Level 4 . | . . . Level 5 . | . . . High Security . | . . . Max Security . | . . . Squads Dispatched 4 | . 3 1 Investigation 3 | . 2 1 Extermination . | . . . Reinforcement 1 | . 1 . Assault . | . . . Garrison . | . . . Intercept . | . . . Searches Triggered . | . . . Construction Impeded . | . . . Haulers Reinforced . | . . . Active Scanning Responses . | . . . Cargo Convoy Interrupts . | . . . Stealth | -11 -10 -10 --------- Run | Yrd Mat Min Distress Signals 2 | . 2 . Communications Jammed . | . . . Distress Signals . | . . . Times Spotted 33 | . 27 6 Peak Tracking Total 8 | . 8 4 Tactical Retreats 1 | . 1 . Traps | -11 -10 -10 ------- Run | Yrd Mat Min Traps Triggered 3 | . 3 . Indirectly . | . . . Trap Hack Attempts . | . . . Triggered . | . . . Disarmed . | . . . Reprogrammed . | . . . Reused . | . . . Traps Extracted . | . . . Installed . | . . . Triggered . | . . . Machines | -11 -10 -10 ---------- Run | Yrd Mat Min Machines Disabled 2 | . 2 . Max in Single Turn 2 | . 2 . Machines Repaired . | . . . Machines Dismantled . | . . . Machines Sabotaged . | . . . Overloaded Fab Kills . | . . . Hacking | -11 -10 -10 --------- Run | Yrd Mat Min Machines Accessed 8 | . 7 1 Terminals 5 | . 5 . Fabricators . | . . . Repair Stations 1 | . 1 . Recycling Units 1 | . 1 . Scanalyzers . | . . . Garrison Access . | . . . Total Hacks 12 | . 11 1 Successful 10 | . 9 1 Failed 2 | . 2 . Catastrophic 1 | . 1 . Database Lockouts . | . . . Manual 7 | . 7 . Terminals 9 | . 9 . Fabricators . | . . . Repair Stations 1 | . 1 . Recycling Units 1 | . 1 . Scanalyzers . | . . . Garrison Access . | . . . Terminal Hacks 4 | . 3 1 Open Door 1 | . . 1 Branch Access Points 1 | . 1 . Unreport Threat 1 | . 1 . Investigation Status 1 | . 1 . Fabricator Hacks . | . . . Repair Station Hacks 1 | . 1 . Scan Component 1 | . 1 . Recycling Unit Hacks 1 | . 1 . Report Inventory 1 | . 1 . Scanalyzer . | . . . Garrison Access Hacks . | . . . Unauthorized Hacks 4 | . 4 . Terminals 4 | . 4 . Botnet 4 | . 4 . Fabricators . | . . . Repair Stations . | . . . Recycling Units . | . . . Scanalyzers . | . . . Garrison Access . | . . . Data Cores Recovered . | . . . Used . | . . . Hacking Detections 4 | . 4 . Full Trace Events . | . . . Feedback Events . | . . . Feedback Blocked . | . . . Robot Schematics Acquired . | . . . Robots Built . | . . . Authchips . | . . . Time . | . . . Total Robot Build Rating . | . . . Part Schematics Acquired . | . . . Parts Built . | . . . Authchips . | . . . Time . | . . . Total Part Build Rating . | . . . Parts Repaired . | . . . Time . | . . . Parts Recycled . | . . . Recycled Matter . | . . . Retrieved Matter . | . . . Retrieved Components . | . . . Parts Scanalyzed . | . . . Part Schematics Acquired . | . . . Parts Damaged . | . . . Bothacking | -11 -10 -10 ------------ Run | Yrd Mat Min Used RIF Installer . | . . . Robots Hacked . | . . . Non-combat . | . . . Combat . | . . . Robot Hacks Applied . | . . . Relay Couplers Released . | . . . Fabnet Peak Effective % . | . . . Robots Rewired . | . . . Allies Hacked . | . . . Hacks Repelled . | . . . Allies | -11 -10 -10 -------- Run | Yrd Mat Min Total Allies 1 | . . 1 Largest Group 1 | . . 1 Highest-Rated Group 31 | . . 31 Highest-Rated Ally 31 | . . 31 Total Orders . | . . . Ally Attacks 1 | . . 1 Total Damage 20 | . . 20 Kills 1 | . . 1 Allies Corrupted . | . . . Allies Melted . | . . . Intel | -11 -10 -10 ------- Run | Yrd Mat Min Robot Analysis Total . | . . . Derelict Logs Recovered 1 | . . 1 Drone Launches . | . . . Drone Recoveries . | . . . Exploration | -11 -10 -10 ------------- Run | Yrd Mat Min Turns Passed 1983 | 162 1519 302 Spaces Moved 975 | 67 744 164 Core 8 | 8 . . Treads 967 | 59 744 164 Legs . | . . . Wheels . | . . . Hover . | . . . Flight . | . . . Fastest Speed 50 | 50 160 160 Average Speed 159 | 149 160 160 Slowest Speed 240 | 160 160 240 Overloaded Moves . | . . . Propulsion Burnouts . | . . . Robots Hopped . | . . . Cave-ins Triggered . | . . . Exploration Rate (%) 46 | 5 98 35 Regions Visited 2 Branch Regions 1 Pre-discovered Areas . | . . . Known Exits Taken 1 | . 1 . Unknown Exits Taken 1 | 1 . . Scrap Searched . | . . . Spaces Dug . | . . . Terrain Destroyed 6 | . . 6 Melee . | . . . Projectile . | . . . AOE 6 | . . 6 Terrain Rammed . | . . . Walls Destroyed . | . . . Machines Disabled . | . . . Actions | -11 -10 -10 --------- Run | Yrd Mat Min Total 1220 | 97 936 187 Wait 114 | . 104 10 Move 973 | 66 743 164 Hop . | . . . Pick Up 12 | 3 7 2 Fast Attach 10 | 7 3 . Attach 2 | . . 2 Detach 1 | . 1 . Swap 7 | 1 5 1 Drop 5 | . 5 . Fire 94 | 20 68 6 Melee 2 | . . 2 Ram . | . . . Kick . | . . . Crush . | . . . Escape Stasis . | . . . Rewire . | . . . Trap . | . . . Miscellaneous . | . . . Route ------- -11/Scrapyard -10/Materials (discovered 5 exits: [*Mat x3] / *Min x2) -10/Mines (discovered 1 exit: [*Mat]) History --------- Turn | Location | Event 9 | -11/Scrapyard | Discovered new exit (range 16) 163 | -11/Scrapyard | Entered Materials 247 | -10/Materials | Discovered new exit (range 11) 316 | -10/Materials | Build established: Mutant 379 | -10/Materials | Discovered new exit (range 5) 489 | -10/Materials | Identified exit to Mines 646 | -10/Materials | Destroyed 7 combat bots 845 | -10/Materials | Discovered new exit (range 3) 1092 | -10/Materials | Discovered new exit (range 5) 1682 | -10/Materials | Entered Mines 1684 | -10/Mines | Met a Derelict bent on vengeance 1685 | -10/Mines | Received a Mining Laser from a helpful Derelict 1700 | -10/Mines | Learned Materials trap positions 1745 | -10/Mines | Met a Derelict shopkeep closing up shop 1890 | -10/Mines | Discovered new exit (range 8) 1917 | -10/Mines | Assembled infested the area 1922 | -10/Mines | Assisted by a Guerilla fighting off Assembled 1974 | -10/Mines | Core integrity fell below 50% 1979 | -10/Mines | Core integrity fell below 20% 1984 | -10/Mines | Destroyed by as-74899 with Assembled Maul Last Messages --------------- 01815_ K-01 Serf destroyed. 01835_ R-06 Scavenger collects Lgt. Ion Engine. 01890_ EXIT=FOUND 01917_ ALERT: Infestation in the mines, dispatching Demolisher response squad. 01922_ A derelict emerges from the shadows: "You need to get out of here! I've been tracking a group of Assembled to figure out where they're coming from, and they're closing on this area, come on!" 01922_ 6L-EFW(h) exits level. 01939_ System corrupted: Matter fused (-6). 01954_ 0H-JCV(g): "You look like you can take it from here!" 01954_ 0H-JCV(g) slips back into the shadows. 01971_ Lgt. Treads destroyed. 01976_ Hvy. EM Pulse Gun destroyed. 01978_ System corrupted by crushing effect (+3). 01979_ as-16479 destroyed. 01980_ Lgt. Treads destroyed. Map ----- +----------------------------------------------------+ | ?????# = #####??????????????????????? | | ?????## ## =%##??????????????????????????? | | ??????##?## !##??????????????????????????? | | ??????????# ###????????????????????????? | | ??????????## #######??????????????????? | | ??????????## #??????????????????? | | ????????### #??????????????????? | | ???????## #### #??????????????????? | | ???????# ##??# #??????????????????? | | ???????# #???# #??????????????????? | | ??????## ### ##???# #??????????????????? | | ?????## #?## #???## #??????????????????? | | ????## #### #??## ##?????????????????? | | ????# ### #??# ##????????????????? | | ????# #?# ###??# ##???????????????? | | ????## #?# #????## #???????????????? | | ?????## ##?# ####??# #???????????????? | | ??????####??# #??## ##???????????????? | | ????????????# ## #??## ##????????????????? | | ?????????#### ## #??# ##?????????????????? | | ???####### ## #??# #??????????????????? | | ???# ## ##### #?## #??????????????????? | | ???# ## #??## ### ##??????????????????? | | ???# ## #### ##???????????????????? | | ???# #????????????????????? | | ???# @ ##????????????????????? | | ???# ### a%a###### #?????????????? | | ???######?## a #?????????????? | | ???????????## #?????????????? | | ????????????## ###########?????????????? | | ?????????????## ##???????????????????????? | | ??????????????####????????????????????????? | | ??????????????????????????????????????????? | | ??????????????????????????????????????????? | | ??????????????????????????????????????????? | | ??????????????????????????????????????????? | | ??????????????????????????????????????????? | | ??????????????????????????????????????????? | | ??????????????????????????????????????????? | | ??????????????????????????????????????????? | | | | | | | | | | | | | | | | | | | | | +----------------------------------------------------+ Best States ------------- Heat Dissipation 25 Energy Generation 14 Energy Capacity 250 Matter Stores 300 Matter Capacity 300 Sight Range 16 Terrain Scan Range 16 Terrain Scan Density 10 Evasion (%) 40 Recoil Reduction 2 Item Schematics ----------------- None Robot Schematics ------------------ None Fabricated ------------ Nothing Alien Tech Used ----------------- None Achievements -------------- None Challenges ------------ None Game ------ Seed DimensionalGravitonMinigun Manual? 0 Play Time 00:17:26 Cumulative 21.4 hours Start 2024.11.16 @ 22:10:38 End 2024.11.16 @ 22:27:01 Sessions 1 Manual Loads 0 Difficulty Rogue Special Mode None Game No. 23 Rogue 22 Adventurer 0 Explorer 1 Win Type - Total 0 Types 0/0/0/0/0/0/0/0/0 Lore% 29 Gallery% 26 Achievement% 24 Wizard Run 0 Options --------- Layout 2 ASCII 0 Keyboard 0 Movement Mouse Keybinds 0 Fullscreen 2 Font 32/Smallcaps Map View 50x44 Zoom Use 0% Tactical HUD 1 Map Filters NONE Filters NONE Steam 1 RUN: 3c512577-f177-4ced-a6f1-c9cf2516a384